[Event "Early-Titled-Tuesday-Blitz-February-20-2024"]
[Site "Chess.com"]
[Date "2024.02.20"]
[Round "4"]
[White "SirGerhard"]
[Black "SharapovEvgeny"]
[Result "0-1"]
[WhiteElo "2745"]
[BlackElo "2557"]
[TimeControl "180+1"]
[EndTime "8:39:16 PST"]
[Termination "SharapovEvgeny won by resignation"]

1. d4 {[%clk 0:02:59.8]} 1... d5 {[%clk 0:02:59.9]} 2. c4 {[%clk 0:03:00.1]}
2... c6 {[%clk 0:03:00.3]} 3. Nf3 {[%clk 0:03:00.4]} 3... Nf6 {[%clk 0:03:00.5]}
4. Nc3 {[%clk 0:03:00.9]} 4... e6 {[%clk 0:03:00.7]} 5. Bg5 {[%clk 0:03:00.5]}
5... Be7 {[%clk 0:03:00.8]} 6. e3 {[%clk 0:03:00.6]} 6... O-O {[%clk 0:03:00.7]}
7. Bd3 {[%clk 0:03:00.7]} 7... h6 {[%clk 0:03:00.8]} 8. Bh4 {[%clk 0:03:00.6]}
8... Nbd7 {[%clk 0:03:00.6]} 9. a3 {[%clk 0:03:01]} 9... b6 {[%clk 0:03:00.8]}
10. cxd5 {[%clk 0:03:00.3]} 10... Nxd5 {[%clk 0:02:59.9]} 11. Bg3 {[%clk
0:03:00.6]} 11... Nxc3 {[%clk 0:02:59.2]} 12. bxc3 {[%clk 0:03:01]} 12... Bb7
{[%clk 0:02:59.9]} 13. O-O {[%clk 0:03:00.9]} 13... c5 {[%clk 0:03:00.2]} 14. e4
{[%clk 0:03:01.3]} 14... cxd4 {[%clk 0:02:59.8]} 15. cxd4 {[%clk 0:03:01.1]}
15... Nf6 {[%clk 0:02:59.7]} 16. Qe2 {[%clk 0:03:00.6]} 16... Rc8 {[%clk
0:02:58.9]} 17. a4 {[%clk 0:02:56.4]} 17... Rc3 {[%clk 0:02:55]} 18. Rfc1 {[%clk
0:02:41.5]} 18... Qc8 {[%clk 0:02:51]} 19. Qb2 {[%clk 0:02:27.6]} 19... Rxc1+
{[%clk 0:02:39.8]} 20. Rxc1 {[%clk 0:02:27.1]} 20... Qa8 {[%clk 0:02:32.9]} 21.
d5 {[%clk 0:02:27]} 21... exd5 {[%clk 0:02:31.3]} 22. e5 {[%clk 0:02:27.1]}
22... Ne4 {[%clk 0:02:30.9]} 23. Nd4 {[%clk 0:02:20.9]} 23... Rc8 {[%clk
0:02:28]} 24. e6 {[%clk 0:01:35.7]} 24... Rxc1+ {[%clk 0:02:26.2]} 25. Qxc1
{[%clk 0:01:35.6]} 25... fxe6 {[%clk 0:02:15.5]} 26. Qc7 {[%clk 0:00:59.5]}
26... Bf6 {[%clk 0:02:09.7]} 27. Nxe6 {[%clk 0:00:58.4]} 27... Qc8 {[%clk
0:02:02.2]} 28. Qxc8+ {[%clk 0:00:44.2]} 28... Bxc8 {[%clk 0:02:01.9]} 29. Nc7
{[%clk 0:00:45.1]} 29... Nxg3 {[%clk 0:01:44.7]} 30. hxg3 {[%clk 0:00:43.3]}
30... Bb7 {[%clk 0:01:44.1]} 31. Nb5 {[%clk 0:00:40.4]} 31... Bc6 {[%clk
0:01:40.3]} 32. Nxa7 {[%clk 0:00:37.9]} 32... Bxa4 {[%clk 0:01:39.6]} 33. Nc8
{[%clk 0:00:36.6]} 33... Bd8 {[%clk 0:01:22.8]} 34. Bf5 {[%clk 0:00:36.6]} 34...
Kf8 {[%clk 0:01:17.2]} 35. Be6 {[%clk 0:00:36.4]} 35... d4 {[%clk 0:01:09.9]}
36. Kf1 {[%clk 0:00:36.6]} 36... b5 {[%clk 0:01:03]} 37. Ke2 {[%clk 0:00:33.6]}
37... b4 {[%clk 0:01:03.1]} 38. Bc4 {[%clk 0:00:33.2]} 38... b3 {[%clk 0:01:01]}
39. Nd6 {[%clk 0:00:33.4]} 39... b2 {[%clk 0:00:55]} 40. Bd3 {[%clk 0:00:33.6]}
40... Ba5 {[%clk 0:00:45]} 41. Nc4 {[%clk 0:00:33.8]} 41... Bc3 {[%clk
0:00:43.4]} 42. Nd2 {[%clk 0:00:34.1]} 42... Bxd2 {[%clk 0:00:39.7]} 43. Kxd2
{[%clk 0:00:34.2]} 43... Ke7 {[%clk 0:00:40.3]} 44. f4 {[%clk 0:00:31.6]} 44...
Kd6 {[%clk 0:00:40.2]} 45. Be4 {[%clk 0:00:32.1]} 45... Kc5 {[%clk 0:00:40.3]}
46. Bb1 {[%clk 0:00:30.5]} 46... Bb3 {[%clk 0:00:39.6]} 47. g4 {[%clk
0:00:30.8]} 47... Kc4 {[%clk 0:00:38.1]} 48. g3 {[%clk 0:00:29.5]} 48... Kc5
{[%clk 0:00:38]} 49. g5 {[%clk 0:00:29.8]} 49... hxg5 {[%clk 0:00:37.7]} 50.
fxg5 {[%clk 0:00:30.7]} 50... Kd6 {[%clk 0:00:37.8]} 51. Kd3 {[%clk 0:00:28.7]}
51... Ke5 {[%clk 0:00:37.9]} 52. g6 {[%clk 0:00:25.5]} 52... Bd5 {[%clk
0:00:37.2]} 53. Kd2 {[%clk 0:00:25.1]} 53... Be4 {[%clk 0:00:37.4]} 0-1

[Event "Early-Titled-Tuesday-Blitz-February-20-2024"]
[Site "Chess.com"]
[Date "2024.02.20"]
[Round "4"]
[White "IamSchrodingersCat"]
[Black "Zhigalko_Sergei"]
[Result "0-1"]
[WhiteElo "2609"]
[BlackElo "2930"]
[TimeControl "180+1"]
[EndTime "8:39:18 PST"]
[Termination "Zhigalko_Sergei won on time"]

1. e4 {[%clk 0:03:00.9]} 1... c5 {[%clk 0:02:59.2]} 2. Nf3 {[%clk 0:03:00.5]}
2... Nc6 {[%clk 0:02:59.7]} 3. d4 {[%clk 0:03:00.5]} 3... cxd4 {[%clk
0:03:00.6]} 4. Nxd4 {[%clk 0:03:01]} 4... Nf6 {[%clk 0:03:01.2]} 5. Nc3 {[%clk
0:03:01.3]} 5... e5 {[%clk 0:03:01.6]} 6. Ndb5 {[%clk 0:03:01.5]} 6... d6 {[%clk
0:03:02.1]} 7. Bg5 {[%clk 0:03:01.7]} 7... a6 {[%clk 0:03:02.5]} 8. Na3 {[%clk
0:03:01.9]} 8... b5 {[%clk 0:03:02.5]} 9. Bxf6 {[%clk 0:03:02.4]} 9... gxf6
{[%clk 0:03:02.9]} 10. Nd5 {[%clk 0:03:03.3]} 10... Bg7 {[%clk 0:03:02.8]} 11.
Bd3 {[%clk 0:03:02.5]} 11... Ne7 {[%clk 0:03:02.6]} 12. Nxe7 {[%clk 0:03:02]}
12... Qxe7 {[%clk 0:03:03.5]} 13. c4 {[%clk 0:03:02.5]} 13... f5 {[%clk
0:03:03.9]} 14. O-O {[%clk 0:02:59.5]} 14... O-O {[%clk 0:03:04]} 15. Rb1 {[%clk
0:02:21.6]} 15... fxe4 {[%clk 0:02:59.2]} 16. Bxe4 {[%clk 0:02:21.4]} 16... Rb8
{[%clk 0:02:59.6]} 17. Qd3 {[%clk 0:01:58.1]} 17... f5 {[%clk 0:02:52.6]} 18.
Bd5+ {[%clk 0:01:58.1]} 18... Kh8 {[%clk 0:02:52.6]} 19. b3 {[%clk 0:01:53.1]}
19... e4 {[%clk 0:02:48.8]} 20. Qd2 {[%clk 0:01:48.1]} 20... Be5 {[%clk
0:02:10.3]} 21. Nc2 {[%clk 0:01:25.6]} 21... Qg7 {[%clk 0:01:52.4]} 22. f4
{[%clk 0:01:05.7]} 22... exf3 {[%clk 0:01:48.9]} 23. Rxf3 {[%clk 0:00:51]} 23...
bxc4 {[%clk 0:01:44.7]} 24. Bxc4 {[%clk 0:00:51.9]} 24... f4 {[%clk 0:01:44]}
25. Rbf1 {[%clk 0:00:44.7]} 25... Bg4 {[%clk 0:01:20.2]} 26. R3f2 {[%clk
0:00:39.8]} 26... f3 {[%clk 0:01:14]} 27. Bd5 {[%clk 0:00:12.4]} 27... Bf4
{[%clk 0:00:57.9]} 28. Qd3 {[%clk 0:00:04.8]} 28... Bf5 {[%clk 0:00:53.5]} 29.
Qd1 {[%clk 0:00:04.6]} 29... fxg2 {[%clk 0:00:07.3]} 30. Rxg2 {[%clk 0:00:04.3]}
30... Qh6 {[%clk 0:00:07.1]} 31. Kh1 {[%clk 0:00:02.9]} 31... Bh3 {[%clk
0:00:04.5]} 0-1

[Event "Early-Titled-Tuesday-Blitz-February-20-2024"]
[Site "Chess.com"]
[Date "2024.02.20"]
[Round "4"]
[White "HamedWafa4"]
[Black "MVM2008"]
[Result "1-0"]
[WhiteElo "2714"]
[BlackElo "2473"]
[TimeControl "180+1"]
[EndTime "8:39:19 PST"]
[Termination "HamedWafa4 won by checkmate"]

1. e4 {[%clk 0:03:00.9]} 1... e5 {[%clk 0:02:57.7]} 2. Nf3 {[%clk 0:03:00.6]}
2... Nf6 {[%clk 0:02:57.8]} 3. Nc3 {[%clk 0:02:59.4]} 3... Nc6 {[%clk
0:02:55.8]} 4. Bb5 {[%clk 0:02:59.9]} 4... Bc5 {[%clk 0:02:55.1]} 5. O-O {[%clk
0:02:57.8]} 5... d6 {[%clk 0:02:47.7]} 6. d4 {[%clk 0:02:45.2]} 6... exd4 {[%clk
0:02:45.4]} 7. Nxd4 {[%clk 0:02:46.1]} 7... Bd7 {[%clk 0:02:45.5]} 8. Nxc6
{[%clk 0:02:46.1]} 8... bxc6 {[%clk 0:02:46.4]} 9. Bd3 {[%clk 0:02:46.5]} 9...
Ng4 {[%clk 0:02:42.8]} 10. h3 {[%clk 0:02:43.9]} 10... h5 {[%clk 0:02:38.5]} 11.
Na4 {[%clk 0:02:37.9]} 11... Bd4 {[%clk 0:02:00.3]} 12. c3 {[%clk 0:02:29]}
12... Bxf2+ {[%clk 0:01:36.2]} 13. Rxf2 {[%clk 0:02:28.9]} 13... Nxf2 {[%clk
0:01:37.1]} 14. Kxf2 {[%clk 0:02:29.8]} 14... Qh4+ {[%clk 0:01:33.4]} 15. Kg1
{[%clk 0:02:28.9]} 15... Bxh3 {[%clk 0:01:28.9]} 16. gxh3 {[%clk 0:02:24.5]}
16... Qg3+ {[%clk 0:01:27.7]} 17. Kf1 {[%clk 0:02:24.8]} 17... Qxh3+ {[%clk
0:01:27.7]} 18. Ke1 {[%clk 0:02:25.2]} 18... Qg3+ {[%clk 0:01:10.2]} 19. Kd2
{[%clk 0:02:24.6]} 19... h4 {[%clk 0:01:08.8]} 20. Kc2 {[%clk 0:02:10.5]} 20...
h3 {[%clk 0:01:07.6]} 21. Bd2 {[%clk 0:02:07.9]} 21... h2 {[%clk 0:00:59.2]} 22.
Qh1 {[%clk 0:02:07.8]} 22... d5 {[%clk 0:00:50.2]} 23. exd5 {[%clk 0:01:58.7]}
23... O-O-O {[%clk 0:00:48.8]} 24. c4 {[%clk 0:01:47.5]} 24... cxd5 {[%clk
0:00:40.2]} 25. cxd5 {[%clk 0:01:47.1]} 25... Rh4 {[%clk 0:00:39.3]} 26. Be1
{[%clk 0:01:38.6]} 26... Qh3 {[%clk 0:00:24.1]} 27. Bxh4 {[%clk 0:01:36.7]}
27... Qxh4 {[%clk 0:00:25]} 28. Nc3 {[%clk 0:01:35.9]} 28... Qf2+ {[%clk
0:00:21.6]} 29. Kb3 {[%clk 0:01:25.5]} 29... Rd6 {[%clk 0:00:18.6]} 30. Na4
{[%clk 0:00:58.6]} 30... Qe3 {[%clk 0:00:04.1]} 31. Qe4 {[%clk 0:00:57.1]} 31...
Qg1 {[%clk 0:00:02.8]} 32. Re1 {[%clk 0:00:43.1]} 32... Rh6 {[%clk 0:00:02.3]}
33. Qe8+ {[%clk 0:00:33.7]} 33... Kb7 {[%clk 0:00:02.7]} 34. Qb5+ {[%clk
0:00:33.9]} 34... Rb6 {[%clk 0:00:02.9]} 35. Nxb6 {[%clk 0:00:31.5]} 35... Qxe1
{[%clk 0:00:02.7]} 36. Nc4+ {[%clk 0:00:16.7]} 36... Kc8 {[%clk 0:00:02.1]} 37.
Bf5+ {[%clk 0:00:17.4]} 37... Kd8 {[%clk 0:00:02.4]} 38. Qd7# {[%clk 0:00:17.7]}
1-0

[Event "Early-Titled-Tuesday-Blitz-February-20-2024"]
[Site "Chess.com"]
[Date "2024.02.20"]
[Round "4"]
[White "ikhasu"]
[Black "NikitaShnadrygin"]
[Result "0-1"]
[WhiteElo "2449"]
[BlackElo "2696"]
[TimeControl "180+1"]
[EndTime "8:39:20 PST"]
[Termination "NikitaShnadrygin won by resignation"]

1. d4 {[%clk 0:02:53.6]} 1... d5 {[%clk 0:02:59.9]} 2. Bf4 {[%clk 0:02:52.4]}
2... Nc6 {[%clk 0:03:00.8]} 3. e3 {[%clk 0:02:50.8]} 3... Nf6 {[%clk 0:02:59.4]}
4. Nf3 {[%clk 0:02:48.9]} 4... Bg4 {[%clk 0:02:59.4]} 5. Nbd2 {[%clk 0:02:47]}
5... e6 {[%clk 0:02:58.6]} 6. h3 {[%clk 0:02:47.1]} 6... Bh5 {[%clk 0:02:54.5]}
7. Bd3 {[%clk 0:02:45.3]} 7... Bd6 {[%clk 0:02:54.2]} 8. c3 {[%clk 0:02:44.2]}
8... Qe7 {[%clk 0:02:40.9]} 9. g4 {[%clk 0:02:40.4]} 9... Bg6 {[%clk 0:02:41]}
10. Bxg6 {[%clk 0:02:39.8]} 10... hxg6 {[%clk 0:02:41.9]} 11. Qb3 {[%clk
0:02:36.3]} 11... Rb8 {[%clk 0:02:35.7]} 12. O-O-O {[%clk 0:02:34]} 12... b5
{[%clk 0:02:22.2]} 13. Ne5 {[%clk 0:02:22]} 13... Bxe5 {[%clk 0:02:18.3]} 14.
dxe5 {[%clk 0:02:21.9]} 14... Nd7 {[%clk 0:02:17.6]} 15. e4 {[%clk 0:02:22.2]}
15... d4 {[%clk 0:02:09.7]} 16. Nf3 {[%clk 0:02:20.2]} 16... Nc5 {[%clk
0:02:06.3]} 17. Qc2 {[%clk 0:02:20.1]} 17... d3 {[%clk 0:01:46.2]} 18. Rxd3
{[%clk 0:02:14.3]} 18... Nxd3+ {[%clk 0:01:46.2]} 19. Qxd3 {[%clk 0:02:14.8]}
19... Qc5 {[%clk 0:01:25.7]} 20. Be3 {[%clk 0:01:52.3]} 20... Qc4 {[%clk
0:01:07.9]} 21. Qxc4 {[%clk 0:01:44.6]} 21... bxc4 {[%clk 0:01:08.8]} 22. Bc5
{[%clk 0:01:44.3]} 22... Rb5 {[%clk 0:01:05.5]} 23. Ba3 {[%clk 0:01:42.2]} 23...
Nxe5 {[%clk 0:01:00.6]} 24. Nd4 {[%clk 0:01:42.2]} 24... Rb7 {[%clk 0:00:55.3]}
25. f3 {[%clk 0:01:42]} 25... c5 {[%clk 0:00:55.4]} 26. Bxc5 {[%clk 0:01:40.4]}
26... Nd3+ {[%clk 0:00:55.6]} 27. Kc2 {[%clk 0:01:38.4]} 27... Nxc5 {[%clk
0:00:56.5]} 28. e5 {[%clk 0:01:32.3]} 28... Nd3 {[%clk 0:00:52.6]} 29. b4 {[%clk
0:01:29.1]} 29... Nxe5 {[%clk 0:00:47.7]} 30. a4 {[%clk 0:01:27.3]} 30... O-O
{[%clk 0:00:44.3]} 31. h4 {[%clk 0:01:26.8]} 31... Rd8 {[%clk 0:00:40.2]} 32. h5
{[%clk 0:01:26.2]} 32... gxh5 {[%clk 0:00:40]} 33. Rxh5 {[%clk 0:01:26]} 33...
Nd3 {[%clk 0:00:39.3]} 34. b5 {[%clk 0:01:19.9]} 34... e5 {[%clk 0:00:35.9]} 35.
Nc6 {[%clk 0:01:19.5]} 35... Re8 {[%clk 0:00:36.1]} 36. Kd2 {[%clk 0:01:15.8]}
36... Nc5 {[%clk 0:00:33.9]} 37. Nxe5 {[%clk 0:01:10.9]} 37... Nxa4 {[%clk
0:00:31.6]} 38. Nxc4 {[%clk 0:01:09.3]} 38... Nb6 {[%clk 0:00:28.3]} 39. Na5
{[%clk 0:01:04.5]} 39... Rd7+ {[%clk 0:00:26.7]} 40. Kc2 {[%clk 0:01:04.9]}
40... Rc7 {[%clk 0:00:26.2]} 41. Kb3 {[%clk 0:00:58]} 41... Nd7 {[%clk
0:00:21.9]} 42. Nc6 {[%clk 0:00:55.1]} 42... a6 {[%clk 0:00:20.5]} 43. c4 {[%clk
0:00:54.2]} 43... axb5 {[%clk 0:00:18.4]} 44. cxb5 {[%clk 0:00:54.2]} 44... f6
{[%clk 0:00:19.1]} 45. Kb4 {[%clk 0:00:53.7]} 45... Ne5 {[%clk 0:00:19.5]} 46.
Nxe5 {[%clk 0:00:45]} 46... Rxe5 {[%clk 0:00:19.3]} 47. Rxe5 {[%clk 0:00:42.7]}
47... fxe5 {[%clk 0:00:20.2]} 48. b6 {[%clk 0:00:43]} 48... Rf7 {[%clk
0:00:20.1]} 49. Kc5 {[%clk 0:00:41.7]} 49... Rxf3 {[%clk 0:00:19.9]} 50. Kd5
{[%clk 0:00:42.1]} 50... Rb3 {[%clk 0:00:19.8]} 51. Kxe5 {[%clk 0:00:42.6]}
51... Rxb6 {[%clk 0:00:19.9]} 0-1

[Event "Early-Titled-Tuesday-Blitz-February-20-2024"]
[Site "Chess.com"]
[Date "2024.02.20"]
[Round "4"]
[White "frequentblunders"]
[Black "annamaja"]
[Result "0-1"]
[WhiteElo "2150"]
[BlackElo "2385"]
[TimeControl "180+1"]
[EndTime "8:39:20 PST"]
[Termination "annamaja won by resignation"]

1. e4 {[%clk 0:02:59.5]} 1... e6 {[%clk 0:02:59.8]} 2. d4 {[%clk 0:02:59.3]}
2... d5 {[%clk 0:03:00]} 3. e5 {[%clk 0:02:59.7]} 3... c5 {[%clk 0:03:00.1]} 4.
c3 {[%clk 0:03:00.2]} 4... Bd7 {[%clk 0:03:00.7]} 5. a4 {[%clk 0:02:58.9]} 5...
Nc6 {[%clk 0:02:55.9]} 6. Nf3 {[%clk 0:02:55.8]} 6... Qb6 {[%clk 0:02:56.1]} 7.
Be2 {[%clk 0:02:52.9]} 7... c4 {[%clk 0:02:41.7]} 8. O-O {[%clk 0:02:49.4]} 8...
Na5 {[%clk 0:02:39.7]} 9. Nbd2 {[%clk 0:02:40.6]} 9... Ne7 {[%clk 0:02:39.2]}
10. b4 {[%clk 0:02:32.2]} 10... cxb3 {[%clk 0:02:35]} 11. Ba3 {[%clk 0:02:31.7]}
11... Rc8 {[%clk 0:02:28.2]} 12. Bc5 {[%clk 0:02:15]} 12... Qc7 {[%clk
0:02:24.5]} 13. Nxb3 {[%clk 0:02:10.6]} 13... Nxb3 {[%clk 0:02:24.5]} 14. Qxb3
{[%clk 0:02:09.1]} 14... b6 {[%clk 0:02:25.1]} 15. Bb4 {[%clk 0:01:40.8]} 15...
a5 {[%clk 0:02:06.6]} 16. Bxe7 {[%clk 0:01:36.3]} 16... Bxe7 {[%clk 0:02:06.4]}
17. Rfc1 {[%clk 0:01:36.2]} 17... O-O {[%clk 0:02:02.6]} 18. Rab1 {[%clk
0:01:19.8]} 18... Rb8 {[%clk 0:01:53.3]} 19. h3 {[%clk 0:01:17.1]} 19... Rfc8
{[%clk 0:01:49.8]} 20. c4 {[%clk 0:01:10.9]} 20... dxc4 {[%clk 0:01:43.9]} 21.
Rxc4 {[%clk 0:01:02.2]} 21... Qb7 {[%clk 0:01:35.4]} 22. Rxc8+ {[%clk
0:00:58.6]} 22... Bxc8 {[%clk 0:01:26.5]} 23. Nd2 {[%clk 0:00:49.9]} 23... Bb4
{[%clk 0:01:18]} 24. Nc4 {[%clk 0:00:32.3]} 24... Bd7 {[%clk 0:01:17.9]} 25. Nd6
{[%clk 0:00:10.2]} 25... Bxd6 {[%clk 0:01:03.3]} 26. exd6 {[%clk 0:00:11.1]}
26... Qe4 {[%clk 0:01:01.9]} 27. Bf3 {[%clk 0:00:07.8]} 27... Qxd4 {[%clk
0:00:59.3]} 28. Rd1 {[%clk 0:00:07.2]} 28... Qxa4 {[%clk 0:00:55.3]} 29. Qe3
{[%clk 0:00:05]} 29... Qb4 {[%clk 0:00:27.1]} 30. Qg5 {[%clk 0:00:03]} 30... f6
{[%clk 0:00:23.6]} 31. Qg3 {[%clk 0:00:02.4]} 31... Rd8 {[%clk 0:00:18.2]} 32.
Bg4 {[%clk 0:00:02.9]} 32... f5 {[%clk 0:00:16.5]} 33. Bf3 {[%clk 0:00:02.8]}
33... Ba4 {[%clk 0:00:16.4]} 34. Re1 {[%clk 0:00:02.7]} 34... Qxe1+ {[%clk
0:00:16.3]} 35. Kh2 {[%clk 0:00:01.9]} 35... Qb4 {[%clk 0:00:15.8]} 0-1

[Event "Early-Titled-Tuesday-Blitz-February-20-2024"]
[Site "Chess.com"]
[Date "2024.02.20"]
[Round "4"]
[White "JoliyRoger"]
[Black "Sammed_Shete"]
[Result "0-1"]
[WhiteElo "2534"]
[BlackElo "2738"]
[TimeControl "180+1"]
[EndTime "8:39:21 PST"]
[Termination "Sammed_Shete won on time"]

1. d4 {[%clk 0:03:00.9]} 1... Nf6 {[%clk 0:02:49]} 2. c4 {[%clk 0:03:01.3]} 2...
e6 {[%clk 0:02:48.9]} 3. Nc3 {[%clk 0:03:01.2]} 3... d5 {[%clk 0:02:49.2]} 4. a3
{[%clk 0:03:01.8]} 4... c5 {[%clk 0:02:47]} 5. cxd5 {[%clk 0:03:01.6]} 5... exd5
{[%clk 0:02:46.4]} 6. Nf3 {[%clk 0:03:01.7]} 6... Nc6 {[%clk 0:02:45.8]} 7. e3
{[%clk 0:03:02.2]} 7... cxd4 {[%clk 0:02:44.2]} 8. Nxd4 {[%clk 0:03:01.7]} 8...
Bd6 {[%clk 0:02:40.7]} 9. Bb5 {[%clk 0:02:56.7]} 9... Bd7 {[%clk 0:02:39.8]} 10.
Nce2 {[%clk 0:02:53.8]} 10... O-O {[%clk 0:02:37.4]} 11. Ng3 {[%clk 0:02:37.1]}
11... Nxd4 {[%clk 0:01:59.5]} 12. Bxd7 {[%clk 0:02:36.3]} 12... Qa5+ {[%clk
0:01:59.3]} 13. Bd2 {[%clk 0:02:31.3]} 13... Qb6 {[%clk 0:01:56.8]} 14. Ba4
{[%clk 0:02:10.7]} 14... Nc6 {[%clk 0:01:48.1]} 15. Bxc6 {[%clk 0:02:04.6]}
15... bxc6 {[%clk 0:01:40.4]} 16. Bc3 {[%clk 0:02:02.7]} 16... Bxg3 {[%clk
0:01:22]} 17. hxg3 {[%clk 0:02:02.2]} 17... c5 {[%clk 0:01:17.4]} 18. O-O {[%clk
0:01:28]} 18... d4 {[%clk 0:01:13.1]} 19. exd4 {[%clk 0:01:27.1]} 19... Rad8
{[%clk 0:01:12.6]} 20. dxc5 {[%clk 0:01:25]} 20... Qxc5 {[%clk 0:01:12.7]} 21.
Bb4 {[%clk 0:00:58.2]} 21... Qg5 {[%clk 0:00:59.1]} 22. Qf3 {[%clk 0:00:44.6]}
22... Ng4 {[%clk 0:00:31]} 23. Bxf8 {[%clk 0:00:31.5]} 23... Qh5 {[%clk
0:00:30.9]} 24. Rfd1 {[%clk 0:00:31.3]} 24... Re8 {[%clk 0:00:30.9]} 25. Qxg4
{[%clk 0:00:18]} 25... Qxg4 {[%clk 0:00:29.6]} 26. Bc5 {[%clk 0:00:17.2]} 26...
h6 {[%clk 0:00:25.9]} 27. Bxa7 {[%clk 0:00:16.5]} 27... h5 {[%clk 0:00:20.3]}
28. Rd4 {[%clk 0:00:06.5]} 28... Qf5 {[%clk 0:00:15.6]} 29. Rad1 {[%clk
0:00:04.1]} 29... Qa5 {[%clk 0:00:15.3]} 30. Bc5 {[%clk 0:00:01.4]} 30... Qxc5
{[%clk 0:00:15]} 31. R4d2 {[%clk 0:00:02]} 31... Rb8 {[%clk 0:00:14.4]} 32. b4
{[%clk 0:00:01.2]} 32... Qb5 {[%clk 0:00:14.5]} 0-1

[Event "Early-Titled-Tuesday-Blitz-February-20-2024"]
[Site "Chess.com"]
[Date "2024.02.20"]
[Round "4"]
[White "mjelcic"]
[Black "HeroWilczek"]
[Result "0-1"]
[WhiteElo "2190"]
[BlackElo "2477"]
[TimeControl "180+1"]
[EndTime "8:39:24 PST"]
[Termination "HeroWilczek won by resignation"]

1. d4 {[%clk 0:03:00.9]} 1... d5 {[%clk 0:02:58.6]} 2. e3 {[%clk 0:02:56.9]}
2... Nf6 {[%clk 0:02:55.7]} 3. Nf3 {[%clk 0:02:56.9]} 3... e6 {[%clk 0:02:54.6]}
4. c4 {[%clk 0:02:56.7]} 4... Be7 {[%clk 0:02:52.1]} 5. Nc3 {[%clk 0:02:55.6]}
5... O-O {[%clk 0:02:52.7]} 6. Bd3 {[%clk 0:02:53.9]} 6... dxc4 {[%clk
0:02:52.5]} 7. Bxc4 {[%clk 0:02:53.5]} 7... b6 {[%clk 0:02:53.4]} 8. O-O {[%clk
0:02:48.4]} 8... Bb7 {[%clk 0:02:53.9]} 9. a3 {[%clk 0:02:31.8]} 9... Nbd7
{[%clk 0:02:54.4]} 10. d5 {[%clk 0:02:27.1]} 10... exd5 {[%clk 0:02:45.3]} 11.
Nxd5 {[%clk 0:02:25.6]} 11... Nxd5 {[%clk 0:02:40.3]} 12. Bxd5 {[%clk
0:02:26.5]} 12... Bxd5 {[%clk 0:02:39.8]} 13. Qxd5 {[%clk 0:02:25.7]} 13... Nf6
{[%clk 0:02:40.7]} 14. Qc6 {[%clk 0:02:15.1]} 14... Qd6 {[%clk 0:02:12.6]} 15.
Qxd6 {[%clk 0:02:13.5]} 15... Bxd6 {[%clk 0:02:13.5]} 16. b4 {[%clk 0:02:10.9]}
16... c5 {[%clk 0:02:06.8]} 17. bxc5 {[%clk 0:02:07.5]} 17... Bxc5 {[%clk
0:02:07.7]} 18. Bb2 {[%clk 0:02:07]} 18... Ne4 {[%clk 0:02:07.1]} 19. Rfd1
{[%clk 0:02:04.9]} 19... Rfd8 {[%clk 0:02:07.6]} 20. Kf1 {[%clk 0:02:02.1]}
20... f6 {[%clk 0:02:06.6]} 21. Ke2 {[%clk 0:01:59.9]} 21... Kf7 {[%clk
0:02:06.7]} 22. Rxd8 {[%clk 0:01:59.4]} 22... Rxd8 {[%clk 0:02:07.6]} 23. a4
{[%clk 0:01:48.3]} 23... a5 {[%clk 0:02:03.7]} 24. Rc1 {[%clk 0:01:46.6]} 24...
h5 {[%clk 0:01:59.6]} 25. Bd4 {[%clk 0:01:45.2]} 25... g5 {[%clk 0:01:54.2]} 26.
Bxc5 {[%clk 0:01:28.3]} 26... Nxc5 {[%clk 0:01:55.1]} 27. Rc4 {[%clk 0:01:23.9]}
27... Ke6 {[%clk 0:01:32.3]} 28. Ng1 {[%clk 0:01:20.9]} 28... Rd6 {[%clk
0:01:23.6]} 29. Nf3 {[%clk 0:01:20.4]} 29... h4 {[%clk 0:01:20]} 30. h3 {[%clk
0:01:17.5]} 30... Kd7 {[%clk 0:01:18.7]} 31. Nd4 {[%clk 0:01:16.3]} 31... Rd5
{[%clk 0:01:15.3]} 32. Nb5 {[%clk 0:01:13.6]} 32... Nxa4 {[%clk 0:01:10.8]} 33.
Nc7 {[%clk 0:01:00.2]} 33... Rc5 {[%clk 0:00:46]} 34. Rd4+ {[%clk 0:00:56]}
34... Kxc7 {[%clk 0:00:45.3]} 35. Rxa4 {[%clk 0:00:56]} 35... Rd5 {[%clk
0:00:40.7]} 36. f4 {[%clk 0:00:55.6]} 36... Kc6 {[%clk 0:00:36.5]} 37. e4 {[%clk
0:00:53.5]} 37... Rb5 {[%clk 0:00:30.4]} 38. Kf3 {[%clk 0:00:51.3]} 38... Rb3+
{[%clk 0:00:29.1]} 39. Kg4 {[%clk 0:00:49]} 39... Rg3+ {[%clk 0:00:28.9]} 40.
Kf5 {[%clk 0:00:49.3]} 40... Rxg2 {[%clk 0:00:26.5]} 41. Kxf6 {[%clk 0:00:49.7]}
41... gxf4 {[%clk 0:00:26.4]} 42. e5 {[%clk 0:00:50.2]} 42... f3 {[%clk
0:00:22.9]} 43. e6 {[%clk 0:00:49.3]} 43... Re2 {[%clk 0:00:22.5]} 44. e7 {[%clk
0:00:46.7]} 44... f2 {[%clk 0:00:22.1]} 45. Rf4 {[%clk 0:00:46.5]} 45... a4
{[%clk 0:00:21.4]} 46. Kg5 {[%clk 0:00:34.3]} 46... Rxe7 {[%clk 0:00:19.2]} 47.
Rxf2 {[%clk 0:00:34.4]} 47... Re4 {[%clk 0:00:18.4]} 48. Rb2 {[%clk 0:00:30.3]}
48... b5 {[%clk 0:00:17.5]} 49. Kf5 {[%clk 0:00:29.7]} 49... Rc4 {[%clk
0:00:17.6]} 50. Kg5 {[%clk 0:00:29.9]} 50... Kc5 {[%clk 0:00:18.1]} 0-1